bitfinex-derivatives/quotes_BTCF0:USTF0_20260104
["timestamp","ask_amount","ask_price","bid_price","bid_amount"]
[1767509666415,0.01093796,91439.0,91421.0,0.01994241]
[1767509666616,0.01093796,91439.0,91428.0,0.010942]
[1767509668014,0.00218726,91439.0,91429.0,0.010942]
[1767509671814,0.00726063,91438.0,91421.0,0.010943]
[1767509672013,0.05422318,91431.0,91423.0,0.010943]
[1767509672218,0.05422318,91433.0,91422.0,0.010943]
[1767509672421,0.05422318,91432.0,91423.0,0.010942]
[1767509672619,0.00708352,91438.0,91423.0,0.010942]
[1767509672919,0.05422318,91433.0,91423.0,0.010942]
[1767509673621,0.00708352,91438.0,91423.0,0.010942]
[1767509673825,0.05422318,91433.0,91423.0,0.010942]
[1767509674523,0.05422318,91433.0,91419.0,0.20990438]
[1767509674524,0.05422318,91433.0,91425.0,0.010942]
[1767509674715,0.05422318,91435.0,91425.0,0.010942]
[1767509674915,0.00708352,91438.0,91425.0,0.010942]
[1767509675318,0.00218726,91439.0,91425.0,0.010942]
[1767509678524,0.00218726,91439.0,91427.0,0.010942]
[1767509679826,0.00218726,91439.0,91422.0,0.11410898]
[1767509680327,0.00218726,91439.0,91423.0,0.01677729]
[1767509680825,0.00218726,91439.0,91427.0,0.010942]
[1767509681714,0.00218726,91439.0,91423.0,0.11410898]
[1767509681920,0.00218726,91439.0,91424.0,0.11410898]
[1767509683429,0.00218726,91439.0,91425.0,0.11410898]
[1767509684330,0.00218726,91439.0,91428.0,0.010942]
[1767509686931,0.00218726,91439.0,91427.0,0.010942]
[1767509689335,0.02503492,91438.0,91427.0,0.11410898]
[1767509689530,0.00218726,91439.0,91427.0,0.11410898]
[1767509689733,0.02503488,91438.0,91427.0,0.11410898]
[1767509689923,0.00218726,91439.0,91427.0,0.11410898]
[1767509690124,0.02503492,91438.0,91427.0,0.11410898]
[1767509690326,0.00218726,91439.0,91427.0,0.11410898]
[1767509690520,0.02504074,91438.0,91427.0,0.11410898]
[1767509690825,0.00218726,91439.0,91427.0,0.11410898]
[1767509691024,0.02503841,91438.0,91428.0,0.010942]
[1767509691226,0.00218726,91439.0,91428.0,0.010942]
[1767509691533,0.02503556,91438.0,91427.0,0.11410898]
[1767509691735,0.02503512,91437.0,91427.0,0.12505098]
[1767509691934,0.00218726,91439.0,91427.0,0.12505098]
[1767509692144,0.02503404,91438.0,91427.0,0.12505098]
[1767509692332,0.00218726,91439.0,91427.0,0.12505098]
[1767509692534,0.02503348,91438.0,91427.0,0.11410898]
[1767509692834,0.02503348,91437.0,91427.0,0.09733169]
[1767509693027,0.00218726,91439.0,91427.0,0.09733169]
[1767509693228,0.02503349,91438.0,91427.0,0.09733169]
[1767509693427,0.02503349,91437.0,91427.0,0.09733169]
[1767509693627,0.00218726,91439.0,91427.0,0.09733169]
[1767509693936,0.0250335,91438.0,91427.0,0.09733169]
[1767509694133,0.0250335,91437.0,91427.0,0.09733169]
[1767509694332,0.00218726,91439.0,91427.0,0.09733169]
[1767509694535,0.02503443,91438.0,91427.0,0.09733169]
[1767509694836,0.02503443,91437.0,91427.0,0.09733169]
[1767509695137,0.00218726,91439.0,91427.0,0.09733169]
[1767509695434,0.02503444,91438.0,91427.0,0.09733169]
[1767509695631,0.02503444,91437.0,91427.0,0.09733169]
[1767509695820,0.00218726,91439.0,91427.0,0.09733169]
[1767509696026,0.02503532,91438.0,91427.0,0.09733169]
[1767509696228,0.02503532,91437.0,91427.0,0.09733169]
[1767509696523,0.0250359,91436.0,91427.0,0.09733169]
[1767509696722,0.00218726,91439.0,91427.0,0.09733169]
[1767509696937,0.02503591,91438.0,91427.0,0.09733169]
[1767509697139,0.02503591,91437.0,91427.0,0.09733169]
[1767509697333,0.02503591,91436.0,91427.0,0.09733169]
[1767509697535,0.00218726,91439.0,91427.0,0.09733169]
[1767509697736,0.02503581,91438.0,91427.0,0.09733169]
[1767509698034,0.02503581,91437.0,91427.0,0.09733169]
[1767509698235,0.02503581,91436.0,91427.0,0.09733169]
[1767509698539,0.00218726,91439.0,91427.0,0.09733169]
[1767509698734,0.02503576,91438.0,91427.0,0.09733169]
[1767509698940,0.02503576,91437.0,91427.0,0.09733169]
[1767509699142,0.02503576,91436.0,91427.0,0.09733169]
[1767509699334,0.00218726,91439.0,91427.0,0.09733169]
[1767509699646,0.02503673,91438.0,91427.0,0.11410898]
[1767509699841,0.02503673,91437.0,91427.0,0.11410898]
[1767509700038,0.02503673,91436.0,91427.0,0.11410898]
[1767509700240,0.00218726,91439.0,91427.0,0.12505098]
[1767509700442,0.02504114,91438.0,91427.0,0.12505098]
[1767509700644,0.02504114,91437.0,91428.0,0.11220183]
[1767509700844,0.02504114,91436.0,91428.0,0.11220183]
[1767509701142,0.00218726,91439.0,91428.0,0.11220183]
[1767509701338,0.02504476,91438.0,91428.0,0.11220183]
[1767509701531,0.00218726,91439.0,91428.0,0.11220183]
[1767509701532,0.02504476,91437.0,91428.0,0.11220183]
[1767509701733,0.02504476,91436.0,91428.0,0.11220183]
[1767509701934,0.00218726,91439.0,91428.0,0.11220183]
[1767509702141,0.02503818,91438.0,91428.0,0.11220183]
[1767509702343,0.02503818,91437.0,91428.0,0.11220183]
[1767509702644,0.02503818,91436.0,91428.0,0.09725124]
[1767509702836,0.00218726,91439.0,91428.0,0.09725124]
[1767509703035,0.02503722,91438.0,91428.0,0.09725124]
[1767509703331,0.02503722,91437.0,91428.0,0.09725124]
[1767509703533,0.02503722,91436.0,91428.0,0.09725124]
[1767509703842,0.00218726,91439.0,91428.0,0.09725124]
[1767509704039,0.025037,91438.0,91428.0,0.09725124]
[1767509704347,0.025037,91437.0,91428.0,0.09725124]
[1767509704540,0.025037,91436.0,91428.0,0.09725124]
[1767509704741,0.00218726,91439.0,91428.0,0.09725124]
[1767509704941,0.02503678,91438.0,91428.0,0.09725124]
[1767509705249,0.02503678,91437.0,91428.0,0.09725124]
[1767509705544,0.02503678,91436.0,91428.0,0.09725124]
[1767509705839,0.00218726,91439.0,91428.0,0.09725124]
[1767509706046,0.02501693,91438.0,91428.0,0.09725124]
[1767509706249,0.02501693,91437.0,91428.0,0.09725124]
[1767509706548,0.00218726,91439.0,91428.0,0.09725124]
[1767509706549,0.01312826,91439.0,91428.0,0.09725124]
[1767509706746,0.02501537,91438.0,91428.0,0.09725124]
[1767509707046,0.02501537,91437.0,91428.0,0.09725124]
[1767509707348,0.00218726,91439.0,91428.0,0.09725124]
[1767509707543,0.02501541,91438.0,91428.0,0.09725124]
[1767509707745,0.02501539,91437.0,91428.0,0.09725124]
[1767509708045,0.00218726,91439.0,91428.0,0.09725124]
[1767509708244,0.02501548,91438.0,91428.0,0.09725124]
[1767509708447,0.02501548,91437.0,91428.0,0.09725124]
[1767509708650,0.00218726,91439.0,91428.0,0.09725124]
[1767509708851,0.02501545,91438.0,91428.0,0.09725124]
[1767509709047,0.02501545,91437.0,91428.0,0.09725124]
[1767509709247,0.00218726,91439.0,91428.0,0.09725124]
[1767509709445,0.0250154,91438.0,91428.0,0.09725124]
[1767509709639,0.0250154,91437.0,91428.0,0.09725124]
[1767509709839,0.00218726,91439.0,91428.0,0.09725124]
[1767509710040,0.02501535,91438.0,91428.0,0.09725124]
[1767509710240,0.02501535,91437.0,91428.0,0.09725124]
[1767509710542,0.00218726,91439.0,91428.0,0.09725124]
[1767509710744,0.02501535,91438.0,91428.0,0.09725124]
[1767509711041,0.02501535,91437.0,91428.0,0.09725124]
[1767509711243,0.00218726,91439.0,91428.0,0.09725124]
[1767509711438,0.00177783,91431.0,91410.0,0.01495059]
[1767509711643,0.05420814,91423.0,91405.0,0.09304]
[1767509711839,0.05420814,91423.0,91387.0,0.0788166]
[1767509711840,0.06938299,91415.0,91387.0,0.0788166]
[1767509712154,0.05420814,91400.0,91385.0,0.09304]
[1767509712449,0.010944,91409.0,91390.0,0.010946]
[1767509712640,0.00016411,91409.0,91390.0,0.00016411]
[1767509713256,0.00016411,91409.0,91395.0,0.010946]
[1767509713446,0.00016411,91409.0,91396.0,0.09725124]
[1767509713654,0.00016411,91409.0,91396.0,0.11220183]
[1767509714047,0.00016411,91409.0,91397.0,0.01495059]
[1767509715058,0.00016411,91409.0,91396.0,0.09725124]
[1767509715659,0.010945,91402.0,91387.0,0.09304]
[1767509715954,0.10579347,91409.0,91382.0,0.010947]
[1767509716158,0.05420814,91392.0,91377.0,0.09316101]
[1767509716352,0.103986,91397.0,91377.0,0.09316101]
[1767509716753,0.103986,91397.0,91378.0,0.00016411]
[1767509717361,0.09304,91397.0,91379.0,0.010948]
[1767509717763,0.09304,91397.0,91381.0,0.01495059]
[1767509718257,0.09304,91397.0,91382.0,0.01495059]
[1767509726958,0.09304,91397.0,91379.0,0.02589859]
[1767509727772,0.010946,91396.0,91379.0,0.01495059]
[1767509730662,0.010946,91396.0,91378.0,0.01111211]
[1767509730663,0.09304,91397.0,91381.0,0.010948]
[1767509730973,0.09304,91397.0,91381.0,0.02830886]
[1767509732467,0.09304,91397.0,91384.0,0.010947]
[1767509732671,0.09304,91397.0,91383.0,0.01593241]
[1767509735176,0.103986,91397.0,91383.0,0.01593241]
[1767509735474,0.103986,91397.0,91381.0,0.010948]
[1767509735776,0.010946,91396.0,91380.0,0.01593241]
[1767509736073,0.010946,91394.0,91378.0,0.00016411]
[1767509736260,0.010946,91391.0,91378.0,0.00016411]
[1767509738469,0.05426904,91388.0,91378.0,0.00016411]
[1767509740072,0.05426904,91390.0,91378.0,0.00016411]
[1767509740776,0.10737625,91385.0,91378.0,6.487e-05]
[1767509740979,0.05426904,91380.0,91368.0,0.010949]
[1767509741178,0.05426904,91380.0,91371.0,0.010949]
[1767509741372,0.05426904,91380.0,91369.0,0.010949]
[1767509741573,0.05426904,91380.0,91370.0,0.010949]
[1767509741867,0.09642925,91385.0,91374.0,0.010948]
[1767509742078,0.00016411,91389.0,91377.0,0.01593241]
[1767509744279,0.02553394,91388.0,91377.0,0.01593241]
[1767509744478,0.00016411,91389.0,91377.0,0.01593241]
[1767509744684,0.0255339,91388.0,91377.0,0.01593241]
[1767509744875,0.00016411,91389.0,91377.0,0.01593241]
[1767509745076,0.02553375,91388.0,91377.0,0.01593241]
[1767509745277,0.00016411,91389.0,91377.0,0.01593241]
[1767509745477,0.02561296,91388.0,91377.0,0.01593241]
[1767509746479,0.00016411,91389.0,91377.0,0.01593241]
[1767509749081,0.00016411,91389.0,91376.0,0.010948]
[1767509749280,0.00016411,91389.0,91374.0,0.010948]
[1767509749480,0.05426904,91384.0,91374.0,0.02688041]
[1767509750581,0.05426904,91384.0,91375.0,0.02688041]
[1767509757392,0.05426904,91384.0,91376.0,0.010948]
[1767509758610,0.05426904,91386.0,91376.0,0.010948]
[1767509761108,0.00016411,91389.0,91382.0,0.010947]
[1767509761299,0.00016411,91389.0,91372.0,0.01506951]
[1767509761494,0.05426904,91382.0,91372.0,0.02601851]
[1767509761696,0.05426904,91382.0,91374.0,0.010948]
[1767509761903,0.05426904,91384.0,91372.0,0.010949]
[1767509762103,0.05426904,91382.0,91373.0,0.010948]
[1767509762302,0.05426904,91383.0,91375.0,0.010948]
[1767509762504,0.05426904,91385.0,91373.0,0.010949]
[1767509762805,0.09311704,91382.0,91370.0,0.010949]
[1767509763108,0.10853808,91380.0,91364.0,0.01506951]
[1767509763304,0.05426904,91374.0,91364.0,0.01506951]
[1767509764009,0.05426904,91374.0,91370.0,0.010949]
[1767509764207,0.01476564,91378.0,91360.0,0.00016411]
[1767509764508,0.01476564,91378.0,91350.0,0.010951]
[1767509764509,0.05426904,91370.0,91353.0,0.01506951]
[1767509764809,0.09311704,91373.0,91353.0,0.01506951]
[1767509764810,0.05426904,91363.0,91353.0,0.01506951]
[1767509765106,0.05426904,91370.0,91353.0,0.01506951]
[1767509765309,0.05426904,91370.0,91360.0,0.01095]
[1767509766202,0.05426904,91370.0,91357.0,0.01095]
[1767509766502,0.05426904,91370.0,91353.0,0.01506951]
[1767509767301,0.05426904,91370.0,91361.0,0.01095]
[1767509767909,0.05426904,91370.0,91353.0,0.01506951]
[1767509768106,0.0783514,91369.0,91352.0,0.09308]
[1767509769107,0.01111311,91371.0,91351.0,0.00016411]
[1767509769108,0.05426904,91362.0,91354.0,0.010951]
[1767509769312,0.13262044,91364.0,91351.0,0.09324411]
[1767509769513,0.05426904,91361.0,91351.0,0.09324411]
[1767509770006,0.05426904,91361.0,91357.0,0.01095]
[1767509770213,0.13262044,91370.0,91359.0,0.01095]
[1767509771114,0.13262044,91370.0,91361.0,0.01095]
[1767509771409,0.13262044,91370.0,91363.0,0.01095]
[1767509772110,0.0783514,91370.0,91363.0,0.01095]
[1767509772512,0.00016411,91371.0,91366.0,0.010949]
[1767509772711,0.14738608,91380.0,91361.0,0.01506951]
[1767509772907,0.0783514,91386.0,91371.0,0.010949]
[1767509773107,0.05426904,91381.0,91377.0,0.010948]
[1767509773308,0.09308,91385.0,91377.0,0.010948]
[1767509773509,0.02555596,91384.0,91377.0,0.010948]
[1767509773709,0.09308,91385.0,91377.0,0.010948]
[1767509773910,0.02555593,91384.0,91377.0,0.010948]
[1767509774109,0.09308,91385.0,91377.0,0.010948]
[1767509774416,0.0255559,91384.0,91377.0,0.010948]
[1767509774609,0.05443315,91390.0,91384.0,0.010947]
[1767509774817,0.09308,91392.0,91381.0,0.010948]
[1767509775009,0.05426904,91390.0,91381.0,0.010948]
[1767509775210,0.05426904,91390.0,91383.0,0.010947]
[1767509775520,0.1714314,91392.0,91383.0,0.010947]
[1767509776017,0.1714314,91392.0,91371.0,0.00016411]
[1767509776018,0.1714314,91392.0,91374.0,0.01506951]
[1767509776220,0.05426904,91390.0,91387.0,0.010947]
[1767509776408,0.09308,91394.0,91387.0,0.010947]
[1767509776606,0.09308,91394.0,91384.0,0.010947]
[1767509776906,0.14734904,91394.0,91384.0,0.010947]
[1767509777819,0.09308,91394.0,91384.0,0.010947]
[1767509778011,0.09308,91394.0,91386.0,0.010947]
[1767509778223,0.09308,91394.0,91383.0,0.010947]
[1767509781122,0.05426904,91393.0,91383.0,0.010947]
[1767509781625,0.05426904,91393.0,91385.0,0.010947]
[1767509781814,0.09308,91394.0,91385.0,0.010947]
[1767509785323,0.09308,91394.0,91382.0,0.010947]
[1767509786324,0.09308,91394.0,91384.0,0.010947]
[1767509787720,0.09308,91394.0,91385.0,0.010947]
[1767509788123,0.09308,91394.0,91383.0,0.010947]
[1767509788329,0.0783514,91390.0,91383.0,0.010947]
[1767509788719,0.0783514,91390.0,91374.0,0.09308]
[1767509788720,0.0783514,91390.0,91380.0,0.010948]
[1767509788920,0.0783514,91388.0,91378.0,0.010948]
[1767509789117,0.0783514,91388.0,91380.0,0.010948]
[1767509789422,0.09311704,91383.0,91371.0,0.00016411]
[1767509789630,0.0783514,91375.0,91365.0,0.09308]
[1767509790632,0.0783514,91375.0,91364.0,0.09308]
[1767509790835,0.0783514,91375.0,91369.0,0.010949]
[1767509791127,0.0783514,91375.0,91364.0,0.09308]
[1767509791329,0.0783514,91375.0,91369.0,0.010949]
[1767509791526,0.0783514,91375.0,91364.0,0.09308]
[1767509791527,0.0783514,91375.0,91368.0,0.010949]
[1767509791727,0.0783514,91375.0,91364.0,0.09308]
[1767509793128,0.09394684,91375.0,91363.0,0.00016411]
[1767509793329,0.05333563,91369.0,91359.0,0.10403]
[1767509793518,0.05333563,91369.0,91359.0,0.01095]
[1767509794735,0.05333563,91369.0,91356.0,0.09308]
[1767509794736,0.05333563,91369.0,91356.0,0.10403]
[1767509795032,0.05333563,91369.0,91357.0,0.01095]
[1767509796230,0.05333563,91369.0,91360.0,0.01095]
[1767509797236,0.05333563,91369.0,91362.0,0.01095]
[1767509799227,0.05333563,91369.0,91359.0,0.01095]
[1767509799628,0.05333563,91368.0,91359.0,0.01095]
[1767509799829,0.05333563,91368.0,91356.0,0.09308]
[1767509799830,0.05333563,91368.0,91356.0,0.01095]
[1767509800135,0.05333563,91365.0,91356.0,0.01095]
[1767509801138,0.05333563,91365.0,91353.0,0.09308]
[1767509801338,0.05333563,91365.0,91356.0,0.01095]
[1767509801636,0.05333563,91358.0,91353.0,0.104031]
[1767509801843,0.05333563,91358.0,91353.0,0.05106311]
[1767509802148,0.06249849,91356.0,91346.0,0.0001094]
[1767509802330,0.05333563,91356.0,91346.0,0.0001094]
[1767509803435,0.05333563,91356.0,91347.0,0.010952]
[1767509803943,0.05333563,91356.0,91346.0,0.0001094]
[1767509804140,0.05802107,91355.0,91346.0,0.0001094]
[1767509804337,0.05333563,91356.0,91346.0,0.0001094]
[1767509804642,0.00023893,91358.0,91346.0,0.0001094]
[1767509804643,0.11495382,91355.0,91346.0,0.0001094]
[1767509805138,0.05693275,91354.0,91346.0,0.0001094]
[1767509805341,0.05802107,91355.0,91343.0,0.010952]
[1767509805342,0.05693275,91352.0,91343.0,0.010952]
[1767509805546,0.05693275,91352.0,91340.0,0.010952]
[1767509805843,0.05693275,91352.0,91332.0,0.01574946]
[1767509806043,0.05693275,91352.0,91329.0,0.06257204]
[1767509806044,0.05693275,91352.0,91333.0,0.10882946]
[1767509807042,0.05693275,91352.0,91340.0,0.010952]
[1767509808939,0.05693275,91352.0,91334.0,0.010953]
[1767509809340,0.05637545,91351.0,91334.0,0.010953]
[1767509810146,0.05637545,91351.0,91343.0,0.010952]
[1767509812145,0.05637545,91351.0,91344.0,0.010952]
[1767509812445,0.05802107,91350.0,91336.0,0.010953]
[1767509812948,0.05333563,91349.0,91346.0,0.010952]
[1767509813551,6.3e-07,91349.0,91347.0,0.010952]
[1767509813752,0.05802107,91350.0,91347.0,0.010952]
[1767509814137,7e-08,91350.0,91349.0,0.010951]
[1767509814342,0.0001642,91360.0,91352.0,0.010951]
[1767509815250,0.4,91359.0,91354.0,0.010951]
[1767509815442,0.0001642,91360.0,91354.0,0.010951]
[1767509815844,0.00558989,91366.0,91354.0,0.010951]
[1767509816047,0.09308,91365.0,91354.0,0.010951]
[1767509816449,0.09866989,91365.0,91354.0,0.010951]
[1767509817149,0.00541486,91364.0,91354.0,0.010951]
[1767509817945,0.00520101,91363.0,91354.0,0.010951]
[1767509818144,0.05853664,91363.0,91352.0,0.010951]
[1767509818340,0.05333563,91361.0,91349.0,0.00574999]
[1767509818546,0.05428626,91360.0,91344.0,0.010952]
[1767509818843,0.06428563,91359.0,91333.0,0.010953]
[1767509819050,0.06428563,91359.0,91343.0,0.010952]
[1767509819445,0.05333563,91359.0,91333.0,0.010953]
[1767509819651,0.05333563,91359.0,91339.0,0.010953]
[1767509820048,0.05428626,91360.0,91339.0,0.010953]
[1767509820049,0.00025311,91354.0,91339.0,0.010953]
[1767509820245,0.00025311,91354.0,91341.0,0.010952]
[1767509820451,0.00025311,91359.0,91337.0,0.04105741]
[1767509820651,0.09333311,91365.0,91349.0,0.010951]
[1767509822552,0.09308,91365.0,91349.0,0.010951]
[1767509823353,0.09308,91365.0,91349.0,0.05200841]
[1767509823660,0.010949,91366.0,91349.0,0.05200841]
[1767509823854,0.09308,91365.0,91349.0,0.05200841]
[1767509825260,0.09308,91365.0,91317.0,0.09795338]
[1767509825261,0.03310761,91350.0,91327.0,0.13413741]
[1767509825450,0.0001642,91348.0,91332.0,0.04105741]
[1767509825650,0.0001642,91348.0,91328.0,0.010954]
[1767509825844,0.03206887,91348.0,91328.0,0.010954]
[1767509826352,0.03206887,91348.0,91333.0,0.010953]
[1767509827851,0.03206887,91348.0,91327.0,0.09308]
[1767509828157,0.03206887,91348.0,91327.0,0.13413741]
[1767509828351,0.03206887,91348.0,91328.0,0.04105741]
[1767509828552,0.03206887,91348.0,91333.0,0.010953]
[1767509828860,0.0001642,91348.0,91328.0,0.05746151]
[1767509829055,0.0001642,91348.0,91336.0,0.010953]
[1767509829357,0.0001642,91348.0,91333.0,0.010953]
[1767509830159,0.0001642,91348.0,91330.0,0.05201141]
[1767509830362,0.02785497,91348.0,91327.0,0.09308]
[1767509830658,0.010952,91345.0,91327.0,0.09308]
[1767509831156,0.010952,91343.0,91327.0,0.09308]
[1767509831660,0.02575037,91339.0,91326.0,0.00010372]
[1767509831862,0.010952,91343.0,91326.0,0.00010372]
[1767509832457,0.010952,91341.0,91326.0,0.00010372]
[1767509832853,0.010953,91335.0,91326.0,0.00010372]
[1767509833057,0.03562786,91338.0,91326.0,0.00010372]
[1767509833660,0.010953,91336.0,91326.0,0.00010372]
[1767509834850,0.010953,91336.0,91305.0,0.04105741]
[1767509834851,0.02246929,91333.0,91305.0,0.04105741]
[1767509835054,0.0001642,91328.0,91306.0,0.04105741]
[1767509835363,0.0001642,91328.0,91313.0,0.010956]
[1767509835664,0.0001642,91328.0,91315.0,0.010955]
[1767509835962,0.0001262,91327.0,91316.0,0.04105741]
[1767509836361,0.0001262,91327.0,91317.0,0.010955]
[1767509837060,0.0001262,91327.0,91311.0,0.05201341]
[1767509837363,0.0001262,91327.0,91305.0,0.09312]
[1767509837364,0.04920368,91325.0,91305.0,0.09312]
[1767509837548,0.03824968,91325.0,91306.0,0.010957]
[1767509838149,0.04920368,91325.0,91306.0,0.010957]
[1767509838354,0.010954,91325.0,91309.0,0.0164041]
[1767509838558,0.0001262,91327.0,91310.0,0.010956]
[1767509838761,0.03824968,91326.0,91307.0,0.010956]
[1767509838964,0.010954,91325.0,91307.0,0.010956]
[1767509839769,0.03824968,91326.0,91307.0,0.05746151]
[1767509840156,0.0110802,91327.0,91310.0,0.010956]
[1767509840362,0.0001262,91327.0,91312.0,0.010956]
[1767509840564,0.0001262,91327.0,91316.0,0.05746151]
[1767509840855,0.09312,91338.0,91323.0,0.04105741]
[1767509841166,0.03824968,91333.0,91312.0,0.04105741]
[1767509841461,0.010953,91339.0,91323.0,0.0164041]
[1767509841663,0.03824968,91344.0,91320.0,0.13417741]
[1767509841968,0.0001642,91341.0,91323.0,0.0001642]
[1767509842357,0.010953,91337.0,91323.0,0.0001642]
[1767509842665,0.01346866,91340.0,91323.0,0.0001642]
[1767509843261,0.00251566,91340.0,91323.0,0.0001642]
[1767509844066,0.0001642,91341.0,91323.0,0.0001642]
[1767509844067,0.0001642,91341.0,91323.0,0.06857971]
[1767509844271,0.0001642,91341.0,91327.0,0.010954]
[1767509844469,0.0001642,91341.0,91325.0,0.04105741]
[1767509845867,0.010951,91351.0,91333.0,0.05746151]
[1767509846057,0.010951,91351.0,91335.0,0.04105741]
[1767509846755,0.09522249,91355.0,91337.0,0.04105741]
[1767509846956,0.09538669,91355.0,91337.0,0.04105741]
[1767509848161,0.02559564,91353.0,91337.0,0.04105741]
[1767509848362,0.09538669,91355.0,91337.0,0.04105741]
[1767509848669,0.0932842,91355.0,91340.0,0.04105741]
[1767509848860,0.0932842,91355.0,91339.0,0.0273571]
[1767509848861,0.0001642,91355.0,91343.0,0.04105741]
[1767509849363,0.00218942,91349.0,91343.0,0.04105741]
[1767509849555,0.00218942,91349.0,91340.0,0.09312]
[1767509850552,0.0001642,91355.0,91343.0,0.03231189]
[1767509851068,0.0001642,91355.0,91344.0,0.03231189]
[1767509852857,0.0001642,91355.0,91340.0,0.09312]
[1767509852858,0.010951,91352.0,91340.0,0.09312]
[1767509853165,0.0111152,91355.0,91340.0,0.09312]
[1767509853756,0.0111152,91355.0,91341.0,0.09312]
[1767509853757,0.01591216,91353.0,91341.0,0.09312]
[1767509854555,0.01591216,91352.0,91341.0,0.09312]
[1767509855965,0.010951,91350.0,91332.0,0.05041718]
[1767509856167,0.010951,91351.0,91333.0,0.09312]
[1767509856566,0.010952,91349.0,91333.0,0.09312]
[1767509856974,0.010952,91349.0,91333.0,0.12566741]
[1767509857469,0.010952,91349.0,91333.0,0.03254741]
[1767509857669,0.03179387,91353.0,91333.0,0.03254741]
[1767509857974,0.010951,91351.0,91338.0,0.03254741]
[1767509858471,0.00343514,91355.0,91338.0,0.03254741]
[1767509858672,0.010952,91349.0,91338.0,0.03254741]
[1767509859074,0.010952,91349.0,91333.0,0.01786977]
[1767509859475,0.00294972,91348.0,91328.0,0.010954]
[1767509859671,0.00294972,91344.0,91329.0,0.09312]
[1767509860476,0.05432014,91340.0,91329.0,0.09312]
[1767509860874,0.05432014,91340.0,91329.0,0.12566741]
[1767509861075,0.00277055,91353.0,91331.0,0.05041718]
[1767509861268,0.05432014,91350.0,91332.0,0.03254741]
[1767509861469,0.05432014,91350.0,91333.0,0.03254741]
[1767509861771,0.010952,91347.0,91335.0,0.03254741]
[1767509861981,0.010951,91353.0,91344.0,0.05041718]
[1767509862178,0.02560483,91352.0,91344.0,0.05041718]
[1767509862475,0.02560483,91351.0,91344.0,0.05041718]
[1767509862667,0.010951,91351.0,91344.0,0.03254741]
[1767509862870,0.010951,91349.0,91338.0,0.03254741]
[1767509863269,0.010951,91349.0,91335.0,0.01786977]
[1767509863478,0.010951,91349.0,91335.0,0.05041718]
[1767509863979,0.010951,91349.0,91336.0,0.03254741]
[1767509864175,0.010951,91349.0,91336.0,0.05041718]
[1767509864878,0.010951,91349.0,91337.0,0.03254741]
[1767509865077,0.010951,91352.0,91337.0,0.03254741]
[1767509865281,0.010951,91352.0,91333.0,0.010953]
[1767509865282,0.05432014,91350.0,91340.0,0.03254741]
[1767509865469,0.06527114,91350.0,91340.0,0.03254741]
[1767509866881,0.05432014,91350.0,91340.0,0.05041718]
[1767509867183,0.05432014,91350.0,91341.0,0.03254741]
[1767509868185,0.0001642,91355.0,91346.0,0.01786977]
[1767509868391,0.09312,91358.0,91347.0,0.03254741]
[1767509868687,0.02562858,91357.0,91347.0,0.03254741]
[1767509868888,0.02562858,91356.0,91347.0,0.03254741]
[1767509869089,0.09312,91358.0,91347.0,0.03254741]
[1767509869388,0.010951,91355.0,91347.0,0.03254741]
[1767509871083,0.09312,91358.0,91347.0,0.03254741]
[1767509871279,0.09312,91358.0,91343.0,0.01803397]
[1767509871280,0.07995986,91357.0,91343.0,0.0001642]
[1767509871480,0.010951,91350.0,91343.0,0.0001642]
[1767509872483,0.010951,91352.0,91343.0,0.0001642]
[1767509875691,0.09312,91358.0,91343.0,0.03271161]
[1767509875993,0.0256662,91357.0,91346.0,0.05041718]
[1767509876181,0.09312,91358.0,91347.0,0.03254741]
[1767509876380,0.02557391,91357.0,91347.0,0.03254741]
[1767509876576,0.02557391,91356.0,91347.0,0.03254741]
[1767509876778,0.02557391,91355.0,91347.0,0.03254741]
[1767509876978,0.10407,91358.0,91347.0,0.03254741]
[1767509877285,0.02557399,91357.0,91347.0,0.03254741]
[1767509877585,0.02557399,91356.0,91347.0,0.05041718]
[1767509877784,0.02557399,91355.0,91348.0,0.05041718]
[1767509877990,0.010951,91356.0,91348.0,0.03254741]
[1767509878285,0.02557374,91355.0,91348.0,0.03254741]
[1767509878487,0.09312,91358.0,91349.0,0.03254741]
[1767509878681,0.0001642,91362.0,91348.0,0.01786977]
[1767509878682,0.0001642,91362.0,91353.0,0.03254741]
[1767509878877,0.09312,91372.0,91355.0,0.03254741]
[1767509879189,0.05432014,91370.0,91355.0,0.03254741]
[1767509879384,0.01095,91358.0,91355.0,0.03254741]
[1767509879592,0.010951,91354.0,91349.0,0.09312]
[1767509880492,0.010951,91354.0,91345.0,0.03254741]
[1767509880794,0.010951,91354.0,91343.0,0.0001642]
[1767509881195,0.05432014,91360.0,91341.0,0.09312]
[1767509881196,0.010952,91345.0,91341.0,0.09312]
[1767509881492,0.010952,91348.0,91341.0,0.09312]
[1767509881686,0.05432014,91350.0,91333.0,0.02989747]
[1767509881991,0.01564817,91346.0,91328.0,0.09312]
[1767509882194,0.010952,91341.0,91328.0,0.0932842]
[1767509882892,0.010952,91341.0,91328.0,0.12318167]
[1767509883894,0.010952,91341.0,91328.0,0.10944367]
[1767509884083,0.010952,91341.0,91329.0,0.02989747]
[1767509884284,0.010952,91341.0,91330.0,0.02989747]
[1767509884586,0.010952,91344.0,91331.0,0.02989747]
[1767509884895,0.010952,91347.0,91340.0,0.02989747]
[1767509885785,0.05432014,91350.0,91340.0,0.02989747]
[1767509887193,0.05432014,91350.0,91328.0,0.1042382]
[1767509887194,0.010954,91331.0,91328.0,2e-07]
[1767509887393,0.01060558,91335.0,91314.0,0.01615947]
[1767509887695,0.06527414,91324.0,91311.0,0.09312]
[1767509887892,0.010954,91324.0,91312.0,0.01615947]
[1767509888089,0.010954,91327.0,91312.0,0.01615947]
[1767509888288,0.06527414,91330.0,91312.0,0.01615947]
[1767509888596,0.05432014,91322.0,91312.0,0.01615947]
[1767509888797,0.010954,91326.0,91312.0,0.01615947]
[1767509889196,0.010954,91326.0,91312.0,0.04605694]
[1767509889492,0.010954,91326.0,91313.0,0.04605694]
[1767509889904,0.05432014,91323.0,91313.0,0.04605694]
[1767509890493,0.05432014,91323.0,91314.0,0.01615947]
[1767509890694,0.010953,91334.0,91320.0,0.04605694]
[1767509890891,0.05432014,91340.0,91325.0,0.04605694]
[1767509891798,0.05432014,91335.0,91325.0,0.02989747]
[1767509892096,0.05432014,91335.0,91320.0,0.01615947]
[1767509892297,0.05432014,91330.0,91320.0,0.01615947]
[1767509893698,0.010954,91329.0,91320.0,0.01615947]
[1767509894692,0.05432014,91330.0,91320.0,0.01615947]
[1767509896002,0.06527414,91330.0,91320.0,0.01615947]
[1767509896200,0.010954,91329.0,91320.0,0.01615947]
[1767509896498,0.05432014,91330.0,91316.0,0.10927947]